fUSD/lending_fUSD_20241023
["ID","MTS","AMOUNT","RATE_DAILY","PERIOD"]
[340685138,1729680436843,-600.0,0.00052602,120]
[340685139,1729680436884,-536.776113,0.00052602,120]
[340685140,1729680436922,-1486.4,0.00052602,120]
[340685141,1729680436962,-907.53,0.00052602,120]
[340685142,1729680437006,-500.0,0.00052602,120]
[340685143,1729680437046,-300.0,0.00052602,120]
[340685144,1729680437083,-1000.0,0.00052602,120]
[340685145,1729680437122,-500.0,0.00052602,120]
[340685146,1729680437159,-1000.0,0.00052602,120]
[340685147,1729680437199,-801.41,0.00052602,120]
[340685148,1729680437236,-562.4,0.00052602,90]
[340685149,1729680437275,-6381.19557048,0.000527,120]
[340685150,1729680437314,-171.102214,0.00052798,120]
[340685151,1729680437358,-50000.0,0.00053,53]
[340685152,1729680437399,-50000.0,0.00053,63]
[340685153,1729680437438,-55685.509999,0.00053,120]
[340685154,1729680437475,-15406.37,0.00053,90]
[340685155,1729680437516,-411.3121868,0.00053,120]
[340685156,1729680437555,-4525.0,0.00053,30]
[340685157,1729680437594,-531.95174112,0.00053,120]
[340685158,1729680437632,-150.19,0.00053033,120]
[340685159,1729680437672,-929.7,0.0005315,120]
[340685160,1729680437711,-500.0,0.0005315,120]
[340685161,1729680437752,-500.0,0.0005315,120]
[340685162,1729680437791,-500.0,0.0005315,120]
[340685163,1729680437830,-1000.0,0.0005315,120]
[340685164,1729680437867,-500.0,0.0005315,120]
[340685165,1729680437905,-1250.0,0.0005315,120]
[340685166,1729680437942,-500.0,0.0005315,120]
[340685167,1729680437980,-500.0,0.0005315,120]
[340685168,1729680438017,-1369.54,0.0005315,120]
[340685169,1729680438055,-1040.64,0.0005315,120]
[340685170,1729680438094,-500.0,0.0005315,120]
[340685171,1729680438133,-1829.92,0.0005315,120]
[340685172,1729680438172,-618.47782491,0.0005315,120]
[340685173,1729680438211,-1589.98,0.0005315,120]
[340685174,1729680438257,-4864.61,0.0005315,120]
[340685175,1729680438296,-1363.39,0.0005315,120]
[340685176,1729680438335,-500.0,0.0005315,120]
[340685177,1729680438377,-500.0,0.0005315,120]
[340685178,1729680438414,-314.79,0.0005315,120]
[340685179,1729680438595,-500.0,0.0005315,120]
[340685180,1729680438634,-1000.0,0.0005315,120]
[340685181,1729680438672,-553.26,0.0005315,120]
[340685182,1729680438709,-1000.0,0.0005315,120]
[340685183,1729680438750,-500.0,0.0005315,120]
[340685184,1729680438786,-500.0,0.0005315,120]
[340685185,1729680438826,-565.55,0.0005315,120]
[340685186,1729680438863,-600.0,0.0005315,120]
[340685187,1729680438905,-1486.4,0.0005315,120]
[340685188,1729680438942,-907.53,0.0005315,120]
[340685189,1729680438979,-500.0,0.0005315,120]
[340685190,1729680439014,-300.0,0.0005315,120]
[340685191,1729680439051,-1000.0,0.0005315,120]
[340685192,1729680439087,-500.0,0.0005315,120]
[340685193,1729680439124,-1000.0,0.0005315,120]
[340685194,1729680439161,-801.41,0.0005315,120]
[340685195,1729680439205,-562.4,0.0005315,90]
[340685196,1729680439242,-150.0,0.00053151,30]
[340685197,1729680439280,-150.0,0.00053151,30]
[340685198,1729680439315,-152.6,0.00053151,30]
[340685199,1729680439350,-150.0,0.00053151,30]
[340685200,1729680439385,-150.0,0.00053151,30]
[340685201,1729680439424,-150.0,0.00053151,30]
[340685202,1729680439459,-150.0,0.00053151,30]
[340685203,1729680439498,-150.0,0.00053151,30]
[340685204,1729680439535,-150.0,0.00053151,30]
[340685205,1729680439575,-150.0,0.00053151,30]
[340685206,1729680439610,-150.0,0.00053151,30]
[340685207,1729680439648,-150.0,0.00053151,30]
[340685208,1729680439684,-150.0,0.00053151,30]
[340685209,1729680439722,-150.0,0.00053151,30]
[340685210,1729680439759,-150.0,0.00053151,30]
[340685211,1729680439799,-150.0,0.00053151,30]
[340685212,1729680439834,-150.0,0.00053151,30]
[340685213,1729680439875,-150.0,0.00053151,30]
[340685214,1729680439914,-150.0,0.00053151,30]
[340685215,1729680439953,-150.0,0.00053151,30]
[340685216,1729680439993,-150.0,0.00053151,30]
[340685217,1729680440033,-150.0,0.00053151,30]
[340685218,1729680440071,-150.0,0.00053151,30]
[340685219,1729680440111,-150.0,0.00053151,30]
[340685220,1729680440150,-150.0,0.00053151,30]
[340685221,1729680440188,-300.0,0.00053151,30]
[340685222,1729680440224,-150.0,0.00053151,30]
[340685223,1729680440260,-150.0,0.00053151,30]
[340685224,1729680440296,-150.0,0.00053151,30]
[340685225,1729680440335,-300.0,0.00053151,30]
[340685226,1729680440372,-157.102214,0.00053198,120]
[340685227,1729680440410,-1650.0,0.00053218,120]
[340685228,1729680440448,-11865.5757045,0.00053242,120]
[340685229,1729680440485,-221.3,0.00053386,120]
[340685230,1729680440524,-171.102214,0.00053498,120]
[340685231,1729680440560,-150.0,0.0005359,30]
[340685232,1729680440598,-2633.00062143,0.00053698,79]
[340685233,1729680440634,-929.7,0.00053698,120]
[340685234,1729680440669,-500.0,0.00053698,120]
[340685235,1729680440705,-500.0,0.00053698,120]
[340685236,1729680440740,-500.0,0.00053698,120]
[340685237,1729680440777,-1000.0,0.00053698,120]
[340685238,1729680440811,-500.0,0.00053698,120]
[340685239,1729680440845,-1250.0,0.00053698,120]
[340685240,1729680440881,-500.0,0.00053698,120]
[340685241,1729680440916,-548.84805557,0.00053698,120]
[340685242,1729680440953,-1369.54,0.00053698,120]
[340685243,1729680440991,-1040.64,0.00053698,120]
[340685244,1729680441026,-500.0,0.00053698,120]
[340685245,1729680441063,-1829.92,0.00053698,120]
[340685246,1729680441099,-1589.98,0.00053698,120]
[340685247,1729680441137,-4864.61,0.00053698,120]
[340685248,1729680441172,-1363.39,0.00053698,120]
[340685249,1729680441209,-500.0,0.00053698,120]
[340685250,1729680441248,-500.0,0.00053698,120]
[340685251,1729680441422,-314.79,0.00053698,120]
[340685252,1729680441461,-500.0,0.00053698,120]
[340685253,1729680441501,-1000.0,0.00053698,120]
[340685254,1729680441536,-553.26,0.00053698,120]
[340685255,1729680441573,-1000.0,0.00053698,120]
[340685256,1729680441607,-500.0,0.00053698,120]
[340685257,1729680441643,-500.0,0.00053698,120]
[340685258,1729680441679,-565.55,0.00053698,120]
[340685259,1729680441713,-600.0,0.00053698,120]
[340685260,1729680441753,-1486.4,0.00053698,120]
[340685261,1729680441790,-907.53,0.00053698,120]
[340685262,1729680441828,-500.0,0.00053698,120]
[340685263,1729680441863,-300.0,0.00053698,120]
[340685264,1729680441899,-990.24792623,0.00053698,120]
[340685265,1729680441934,-500.0,0.00053698,120]
[340685266,1729680441970,-1000.0,0.00053698,120]
[340685267,1729680442007,-801.41,0.00053698,120]
[340685268,1729680442043,-157.102214,0.00053798,120]
[340685269,1729680442082,-429.0,0.000538,43]
[340685270,1729680442119,-152.0,0.000538,58]
[340685271,1729680442157,-211.0,0.0005387,30]
[340685272,1729680442193,-203.0,0.0005387,30]
[340685273,1729680442230,-208.0,0.0005387,30]
[340685274,1729680442266,-211.0,0.0005387,30]
[340685275,1729680442302,-205.0,0.0005387,30]
[340685276,1729680442340,-6000.0,0.000539,30]
[340685277,1729680442377,-196.2217999,0.000539,120]
[340685278,1729680442412,-150.0,0.00053964,120]
[340685279,1729680442452,-50000.0,0.00054,54]
[340685280,1729680442490,-50000.0,0.00054,64]
[340685281,1729680442528,-4000.0,0.00054,60]
[340685282,1729680442562,-10000.000001,0.00054,120]
[340685283,1729680442599,-500.0,0.00054,120]
[340685284,1729680442634,-5000.0,0.00054,120]
[340685285,1729680442668,-350.0,0.00054,120]
[340685286,1729680442704,-60011.24373991,0.00054,120]
[340685287,1729680442740,-1800.0,0.0005404,120]
[340685288,1729680442777,-171.102214,0.00054198,120]
[340685289,1729680442812,-929.7,0.00054246,120]
[340685290,1729680442847,-500.0,0.00054246,120]
[340685291,1729680442882,-500.0,0.00054246,120]
[340685292,1729680442917,-500.0,0.00054246,120]
[340685293,1729680442953,-1000.0,0.00054246,120]
[340685294,1729680442987,-500.0,0.00054246,120]
[340685295,1729680443027,-1250.0,0.00054246,120]
[340685296,1729680443062,-500.0,0.00054246,120]
[340685297,1729680443096,-1369.54,0.00054246,120]
[340685298,1729680443132,-1040.64,0.00054246,120]
[340685299,1729680443165,-500.0,0.00054246,120]
[340685300,1729680443199,-1829.92,0.00054246,120]
[340685301,1729680443235,-1589.98,0.00054246,120]
[340685302,1729680443271,-4864.61,0.00054246,120]
[340685303,1729680443314,-1363.39,0.00054246,120]
[340685304,1729680443350,-500.0,0.00054246,120]
[340685305,1729680443390,-500.0,0.00054246,120]
[340685306,1729680443425,-314.79,0.00054246,120]
[340685307,1729680443460,-1066.7691677,0.00054246,120]
[340685308,1729680443498,-500.0,0.00054246,120]
[340685309,1729680443534,-1000.0,0.00054246,120]
[340685310,1729680443570,-553.26,0.00054246,120]
[340685311,1729680443604,-1000.0,0.00054246,120]
[340685312,1729680443641,-500.0,0.00054246,120]
[340685313,1729680443677,-500.0,0.00054246,120]
[340685314,1729680443715,-565.55,0.00054246,120]
[340685315,1729680443751,-600.0,0.00054246,120]
[340685316,1729680443785,-1486.4,0.00054246,120]
[340685317,1729680443821,-907.53,0.00054246,120]
[340685318,1729680443858,-500.0,0.00054246,120]
[340685319,1729680443896,-300.0,0.00054246,120]
[340685320,1729680443930,-500.0,0.00054246,120]
[340685321,1729680444099,-1000.0,0.00054246,120]
[340685322,1729680444134,-801.41,0.00054246,120]
[340685323,1729680444171,-4558.4,0.00054314,117]
[340685324,1729680444205,-250000.0,0.000544,30]
[340685325,1729680444240,-181.1448742,0.00054432,56]
[340685326,1729680444277,-153.102214,0.00054498,120]
[340685327,1729680444313,-5167.764836,0.00054794,120]
[340685328,1729680444349,-500.0,0.00054794,120]
[340685329,1729680444388,-500.0,0.00054794,120]
[340685330,1729680444422,-500.0,0.00054794,120]
[340685331,1729680444458,-500.0,0.00054794,120]
[340685332,1729680444496,-943.86,0.00054794,120]
[340685333,1729680444533,-500.0,0.00054794,120]
[340685334,1729680444568,-2000.0,0.00054794,120]
[340685335,1729680444604,-1017.05,0.00054794,120]
[340685336,1729680444640,-500.0,0.00054794,120]
[340685337,1729680444675,-500.0,0.00054794,120]
[340685338,1729680444710,-500.0,0.00054794,120]
[340685339,1729680444746,-500.0,0.00054794,120]
[340685340,1729680444782,-500.0,0.00054794,120]
[340685341,1729680444820,-500.0,0.00054794,120]
[340685342,1729680444854,-500.0,0.00054794,120]
[340685343,1729680444895,-500.0,0.00054794,120]
[340685344,1729680444939,-531.60083749,0.00054794,120]
[340685345,1729680444982,-500.0,0.00054794,120]
[340685346,1729680445024,-500.0,0.00054794,120]
[340685347,1729680445059,-506.50823603,0.00054794,120]
[340685348,1729680445091,-500.0,0.00054794,120]
[340685349,1729680445127,-500.0,0.00054794,120]
[340685350,1729680445160,-183.22458381,0.00054794,120]
[340685351,1729680445194,-500.0,0.00054794,120]
[340685352,1729680445231,-500.0,0.00054794,120]
[340685353,1729680445266,-500.0,0.00054794,120]
[340685354,1729680445318,-500.0,0.00054794,120]
[340685355,1729680445374,-500.0,0.00054794,120]
[340685356,1729680445428,-345.6870869,0.00054794,120]
[340685357,1729680445483,-500.0,0.00054794,120]
[340685358,1729680445537,-500.0,0.00054794,120]
[340685359,1729680445584,-494.87306593,0.00054794,120]
[340685360,1729680445632,-500.0,0.00054794,60]
[340685361,1729680445679,-500.0,0.00054794,60]
[340685362,1729680445729,-387.17775691,0.00054794,60]
[340685363,1729680445775,-500.0,0.00054794,120]
[340685364,1729680445821,-500.0,0.00054794,120]
[340685365,1729680445872,-500.0,0.00054794,120]
[340685366,1729680445919,-500.0,0.00054794,120]
[340685367,1729680445968,-500.0,0.00054794,120]
[340685368,1729680446017,-500.0,0.00054794,120]
[340685369,1729680446067,-500.0,0.00054794,120]
[340685370,1729680446119,-500.0,0.00054794,120]
[340685371,1729680446169,-500.0,0.00054794,120]
[340685372,1729680446221,-500.0,0.00054794,120]
[340685373,1729680446268,-500.0,0.00054794,120]
[340685374,1729680446324,-500.0,0.00054794,120]
[340685375,1729680446380,-500.0,0.00054794,120]
[340685376,1729680446430,-500.0,0.00054794,120]
[340685377,1729680446480,-500.0,0.00054794,120]
[340685378,1729680446531,-500.0,0.00054794,120]
[340685379,1729680446584,-500.0,0.00054794,120]
[340685380,1729680446638,-500.0,0.00054794,120]
[340685381,1729680446688,-500.0,0.00054794,120]
[340685382,1729680446739,-1437.84,0.00054794,120]
[340685383,1729680446792,-500.0,0.00054794,120]
[340685384,1729680446842,-500.0,0.00054794,120]
[340685385,1729680446893,-2284.83,0.00054794,120]
[340685386,1729680446943,-2284.83,0.00054794,120]
[340685387,1729680446993,-2284.83,0.00054794,120]
[340685388,1729680447212,-2284.83,0.00054794,120]
[340685389,1729680447259,-2284.83,0.00054794,120]
[340685390,1729680447298,-2284.83,0.00054794,120]
[340685391,1729680447334,-2284.83,0.00054794,120]
[340685392,1729680447368,-2284.83,0.00054794,120]
[340685393,1729680447403,-2284.83,0.00054794,120]
[340685394,1729680447437,-2284.83,0.00054794,120]
[340685395,1729680447475,-2284.83,0.00054794,120]
[340685396,1729680447510,-2284.83,0.00054794,120]
[340685397,1729680447546,-2284.83,0.00054794,120]
[340685398,1729680447580,-2284.83,0.00054794,120]
[340685399,1729680447613,-2284.83,0.00054794,120]
[340685400,1729680447646,-500.0,0.00054794,120]
[340685401,1729680447680,-2284.83,0.00054794,120]
[340685402,1729680447716,-2284.83,0.00054794,120]
[340685403,1729680447752,-2284.83,0.00054794,120]
[340685404,1729680447790,-2284.83,0.00054794,120]
[340685405,1729680447825,-2284.83,0.00054794,120]
[340685406,1729680447863,-2284.83,0.00054794,120]
[340685407,1729680447901,-2284.83,0.00054794,120]
[340685408,1729680447938,-2284.83,0.00054794,120]
[340685409,1729680447979,-2284.98938399,0.00054794,120]
[340685410,1729680448016,-500.0,0.00054794,120]
[340685411,1729680448054,-581.9475996,0.00054794,120]
[340685412,1729680448091,-502.46248485,0.00054794,120]
[340685413,1729680448127,-500.0,0.00054794,120]
[340685414,1729680448161,-500.0,0.00054794,120]
[340685415,1729680448199,-500.0,0.00054794,120]
[340685416,1729680448235,-500.0,0.00054794,120]
[340685417,1729680448274,-521.89055392,0.00054794,120]
[340685418,1729680448309,-500.0,0.00054794,120]
[340685419,1729680448347,-642.35,0.00054794,120]
[340685420,1729680448387,-510.88337325,0.00054794,120]
[340685421,1729680448424,-500.0,0.00054794,120]
[340685422,1729680448463,-500.0,0.00054794,120]
[340685423,1729680448502,-635.05,0.00054794,120]
[340685424,1729680448540,-500.0,0.00054794,120]
[340685425,1729680448578,-500.0,0.00054794,120]
[340685426,1729680448614,-500.0,0.00054794,120]
[340685427,1729680448652,-513.58266315,0.00054794,120]
[340685428,1729680448687,-884.93,0.00054794,120]
[340685429,1729680448725,-500.0,0.00054794,120]
[340685430,1729680448760,-296.48815921,0.00054794,120]
[340685431,1729680448795,-781.9,0.00054794,120]
[340685432,1729680448832,-500.0,0.00054794,120]
[340685433,1729680448868,-500.0,0.00054794,120]
[340685434,1729680448905,-503.77161187,0.00054794,120]
[340685435,1729680448940,-500.0,0.00054794,120]
[340685436,1729680448976,-500.0,0.00054794,120]
[340685437,1729680449012,-500.0,0.00054794,120]
[340685438,1729680449046,-508.970725,0.00054794,120]
[340685439,1729680449084,-500.0,0.00054794,120]
[340685440,1729680449119,-500.0,0.00054794,120]
[340685441,1729680449155,-500.0,0.00054794,120]
[340685442,1729680449190,-500.0,0.00054794,120]
[340685443,1729680449226,-500.0,0.00054794,120]
[340685444,1729680449262,-500.0,0.00054794,120]
[340685445,1729680449297,-500.0,0.00054794,120]
[340685446,1729680449332,-500.0,0.00054794,120]
[340685447,1729680449366,-500.0,0.00054794,120]
[340685448,1729680449404,-195.19459317,0.00054794,120]
[340685449,1729680449439,-500.0,0.00054794,120]
[340685450,1729680449473,-500.0,0.00054794,120]
[340685451,1729680449512,-500.0,0.00054794,120]
[340685452,1729680449547,-278.93355236,0.00054794,120]
[340685453,1729680449582,-720.98,0.00054794,120]
[340685454,1729680449619,-500.0,0.00054794,120]
[340685455,1729680449656,-500.0,0.00054794,120]
[340685456,1729680449695,-500.0,0.00054794,120]
[340685457,1729680449731,-613.5,0.00054794,120]
[340685458,1729680449768,-500.0,0.00054794,120]
[340685459,1729680449804,-500.0,0.00054794,120]
[340685460,1729680449839,-500.0,0.00054794,120]
[340685461,1729680449876,-500.0,0.00054794,120]
[340685462,1729680449911,-500.0,0.00054794,120]
[340685463,1729680450088,-554.14,0.00054794,120]
[340685464,1729680450124,-1129.23,0.00054794,120]
[340685465,1729680450161,-500.0,0.00054794,120]
[340685466,1729680450196,-500.0,0.00054794,120]
[340685467,1729680450233,-500.0,0.00054794,120]
[340685468,1729680450271,-500.0,0.00054794,120]
[340685469,1729680450306,-500.0,0.00054794,120]
[340685470,1729680450344,-500.0,0.00054794,120]
[340685471,1729680450381,-697.13,0.00054794,120]
[340685472,1729680450416,-500.0,0.00054794,120]
[340685473,1729680450451,-1664.24,0.00054794,120]
[340685474,1729680450486,-500.0,0.00054794,120]
[340685475,1729680450525,-500.0,0.00054794,120]
[340685476,1729680450560,-542.38862726,0.00054794,120]
[340685477,1729680450597,-687.71,0.00054794,120]
[340685478,1729680450633,-500.0,0.00054794,120]
[340685479,1729680450668,-500.0,0.00054794,120]
[340685480,1729680450703,-500.0,0.00054794,120]
[340685481,1729680450739,-500.0,0.00054794,120]
[340685482,1729680450775,-666.79,0.00054794,120]
[340685483,1729680450810,-500.0,0.00054794,120]
[340685484,1729680450845,-500.0,0.00054794,120]
[340685485,1729680450884,-2123.96,0.00054794,120]
[340685486,1729680450923,-587.81,0.00054794,120]
[340685487,1729680450964,-500.0,0.00054794,120]
[340685488,1729680451004,-500.0,0.00054794,120]
[340685489,1729680451042,-500.0,0.00054794,120]
[340685490,1729680451081,-532.76274877,0.00054794,120]
[340685491,1729680451115,-500.0,0.00054794,120]
[340685492,1729680451152,-500.0,0.00054794,120]
[340685493,1729680451185,-500.0,0.00054794,120]
[340685494,1729680451222,-1293.6,0.00054794,120]
[340685495,1729680451259,-500.0,0.00054794,120]
[340685496,1729680451293,-500.0,0.00054794,120]
[340685497,1729680451328,-505.7332905,0.00054794,90]
[340685498,1729680451363,-500.0,0.00054794,120]
[340685499,1729680451403,-500.0,0.00054794,120]
[340685500,1729680451439,-500.0,0.00054794,120]
[340685501,1729680451481,-1681.98,0.00054794,120]
[340685502,1729680451518,-500.0,0.00054794,120]
[340685503,1729680451556,-500.0,0.00054794,120]
[340685504,1729680451593,-500.0,0.00054794,120]
[340685505,1729680451629,-500.0,0.00054794,120]
[340685506,1729680451666,-500.0,0.00054794,120]
[340685507,1729680451702,-500.0,0.00054794,120]
[340685508,1729680451738,-500.0,0.00054794,120]
[340685509,1729680451775,-500.0,0.00054794,120]
[340685510,1729680451812,-1604.98,0.00054794,120]
[340685511,1729680451847,-613.75,0.00054794,120]
[340685512,1729680451881,-500.0,0.00054794,120]
[340685513,1729680451916,-500.0,0.00054794,120]
[340685514,1729680451953,-500.0,0.00054794,120]
[340685515,1729680451986,-500.0,0.00054794,60]
[340685516,1729680452022,-500.0,0.00054794,120]
[340685517,1729680452059,-883.79,0.00054794,120]
[340685518,1729680452096,-500.0,0.00054794,120]
[340685519,1729680452129,-2200.53,0.00054794,120]
[340685520,1729680452164,-500.0,0.00054794,120]
[340685521,1729680452198,-500.0,0.00054794,120]
[340685522,1729680452234,-500.0,0.00054794,120]
[340685523,1729680452270,-500.0,0.00054794,120]
[340685524,1729680452303,-500.0,0.00054794,120]
[340685525,1729680452339,-500.0,0.00054794,120]
[340685526,1729680452372,-500.0,0.00054794,120]
[340685527,1729680452411,-500.0,0.00054794,120]
[340685528,1729680452447,-500.0,0.00054794,120]
[340685529,1729680452484,-500.0,0.00054794,120]
[340685530,1729680452518,-500.0,0.00054794,120]
[340685531,1729680452552,-500.0,0.00054794,120]
[340685532,1729680452590,-500.0,0.00054794,120]
[340685533,1729680452625,-500.0,0.00054794,120]
[340685534,1729680452770,-500.0,0.00054794,120]
[340685535,1729680452830,-767.39,0.00054794,120]
[340685536,1729680452865,-769.52,0.00054794,120]
[340685537,1729680452901,-500.0,0.00054794,120]
[340685538,1729680452934,-500.0,0.00054794,120]
[340685539,1729680452969,-1003.41,0.00054794,120]
[340685540,1729680453004,-500.0,0.00054794,120]
[340685541,1729680453039,-500.0,0.00054794,120]
[340685542,1729680453075,-680.03,0.00054794,120]
[340685543,1729680453110,-500.0,0.00054794,120]
[340685544,1729680453147,-750.73,0.00054794,120]
[340685545,1729680453180,-500.0,0.00054794,120]
[340685546,1729680453217,-500.0,0.00054794,120]
[340685547,1729680453256,-500.0,0.00054794,120]
[340685548,1729680453293,-500.0,0.00054794,120]
[340685549,1729680453337,-500.0,0.00054794,120]
[340685550,1729680453380,-809.46,0.00054794,120]
[340685551,1729680453428,-500.0,0.00054794,120]
[340685552,1729680453468,-500.0,0.00054794,120]
[340685553,1729680453508,-500.0,0.00054794,120]
[340685554,1729680453548,-500.0,0.00054794,120]
[340685555,1729680453586,-500.0,0.00054794,120]
[340685556,1729680453631,-500.0,0.00054794,120]
[340685557,1729680453669,-500.0,0.00054794,120]
[340685558,1729680453709,-500.0,0.00054794,120]
[340685559,1729680453748,-765.26,0.00054794,120]
[340685560,1729680453784,-500.0,0.00054794,120]
[340685561,1729680453825,-500.0,0.00054794,120]
[340685562,1729680453862,-500.0,0.00054794,120]
[340685563,1729680453901,-500.0,0.00054794,120]
[340685564,1729680453939,-500.0,0.00054794,120]
[340685565,1729680453975,-500.0,0.00054794,120]
[340685566,1729680454015,-500.0,0.00054794,120]
[340685567,1729680454051,-500.0,0.00054794,120]
[340685568,1729680454087,-500.0,0.00054794,120]
[340685569,1729680454125,-500.0,0.00054794,120]
[340685570,1729680454160,-500.0,0.00054794,120]
[340685571,1729680454200,-674.11,0.00054794,120]
[340685572,1729680454242,-500.0,0.00054794,120]
[340685573,1729680454283,-500.0,0.00054794,120]
[340685574,1729680454324,-500.0,0.00054794,120]
[340685575,1729680454361,-500.0,0.00054794,120]
[340685576,1729680454402,-500.0,0.00054794,120]
[340685577,1729680454440,-500.0,0.00054794,120]
[340685578,1729680454476,-500.0,0.00054794,120]
[340685579,1729680454516,-500.0,0.00054794,120]
[340685580,1729680454552,-504.27993381,0.00054794,120]
[340685581,1729680454591,-500.0,0.00054794,120]
[340685582,1729680454626,-500.0,0.00054794,120]
[340685583,1729680454662,-500.0,0.00054794,120]
[340685584,1729680454701,-500.0,0.00054794,120]
[340685585,1729680454738,-500.0,0.00054794,120]
[340685586,1729680454776,-500.0,0.00054794,120]
[340685587,1729680454812,-739.78,0.00054794,120]
[340685588,1729680454846,-500.0,0.00054794,120]
[340685589,1729680454882,-500.0,0.00054794,120]
[340685590,1729680454916,-500.0,0.00054794,120]
[340685591,1729680454952,-500.0,0.00054794,120]
[340685592,1729680454987,-500.0,0.00054794,120]
[340685593,1729680455022,-500.0,0.00054794,120]
[340685594,1729680455060,-527.58,0.00054794,120]
[340685595,1729680455094,-500.0,0.00054794,120]
[340685596,1729680455131,-1206.35,0.00054794,120]
[340685597,1729680455166,-500.0,0.00054794,120]
[340685598,1729680455199,-500.0,0.00054794,120]
[340685599,1729680455236,-500.0,0.00054794,120]
[340685600,1729680455271,-500.0,0.00054794,120]
[340685601,1729680455306,-554.95,0.00054794,120]
[340685602,1729680455341,-500.0,0.00054794,120]
[340685603,1729680455378,-500.0,0.00054794,120]
[340685604,1729680455540,-612.13,0.00054794,120]
[340685605,1729680455578,-500.0,0.00054794,120]
[340685606,1729680455613,-500.0,0.00054794,120]
[340685607,1729680455649,-500.0,0.00054794,120]
[340685608,1729680455683,-500.0,0.00054794,120]
[340685609,1729680455716,-500.0,0.00054794,120]
[340685610,1729680455751,-500.0,0.00054794,120]
[340685611,1729680455786,-500.0,0.00054794,120]
[340685612,1729680455824,-500.0,0.00054794,120]
[340685613,1729680455860,-500.0,0.00054794,120]
[340685614,1729680455900,-500.0,0.00054794,120]
[340685615,1729680455946,-500.0,0.00054794,120]
[340685616,1729680455987,-500.0,0.00054794,120]
[340685617,1729680456027,-397.79619239,0.00054794,120]
[340685618,1729680456064,-503.69611778,0.00054794,30]
[340685619,1729680456100,-500.0,0.00054794,120]
[340685620,1729680456137,-500.0,0.00054794,120]
[340685621,1729680456173,-500.0,0.00054794,120]
[340685622,1729680456208,-500.0,0.00054794,120]
[340685623,1729680456244,-896.36,0.00054794,120]
[340685624,1729680456279,-500.0,0.00054794,120]
[340685625,1729680456311,-500.0,0.00054794,120]
[340685626,1729680456346,-500.0,0.00054794,120]
[340685627,1729680456381,-500.0,0.00054794,120]
[340685628,1729680456417,-500.0,0.00054794,120]
[340685629,1729680456451,-500.0,0.00054794,120]
[340685630,1729680456486,-500.0,0.00054794,120]
[340685631,1729680456524,-500.0,0.00054794,120]
[340685632,1729680456560,-506.31577721,0.00054794,120]
[340685633,1729680456599,-673.99,0.00054794,120]
[340685634,1729680456633,-500.0,0.00054794,120]
[340685635,1729680456668,-500.0,0.00054794,120]
[340685636,1729680456705,-500.0,0.00054794,120]
[340685637,1729680456740,-500.0,0.00054794,120]